[Event "Titled Tuesday Blitz June 20 Early 2023"]
[White "Alberto, Manuel"]
[Black "Modric, Nesa"]
[WhiteFideId "10100148"]
[BlackFideId "922579"]
[WhiteElo "2166"]
[BlackElo "2167"]
[Result "1-0"]
[Round "5"]
[TimeControl "180+2"]
[Date "2023.06.20"]
[WhiteClock "0:00:42"]
[BlackClock "0:00:00"]
[Board "210"]

1. e4 {[%clk 0:02:57]}  d5 {[%clk 0:03:00]} 2. exd5 {[%clk 0:02:52]}  Qxd5 {[%clk 0:03:01]} 3. Nc3 {[%clk 0:02:51]}  Qa5 {[%clk 0:03:00]} 4. d4 {[%clk 0:02:51]}  c6 {[%clk 0:02:58]} 5. Nf3 {[%clk 0:02:49]}  Nf6 {[%clk 0:02:58]} 6. Ne5 {[%clk 0:02:48]}  Nbd7 {[%clk 0:02:56]} 7. Nc4 {[%clk 0:02:46]}  Qd8 {[%clk 0:02:54]} 8. Bf4 {[%clk 0:02:45]}  Nb6 {[%clk 0:02:51]} 9. Ne5 {[%clk 0:02:43]}  Be6 {[%clk 0:02:50]} 10. a4 {[%clk 0:02:41]}  g6 {[%clk 0:02:44]} 11. a5 {[%clk 0:02:40]}  Nbd5 {[%clk 0:02:42]} 12. Nxd5 {[%clk 0:02:38]}  Nxd5 {[%clk 0:02:39]} 13. Bg3 {[%clk 0:02:38]}  a6 {[%clk 0:02:27]} 14. Qd2 {[%clk 0:02:37]}  Bg7 {[%clk 0:02:22]} 15. c4 {[%clk 0:02:36]}  Nf6 {[%clk 0:02:21]} 16. Qe3 {[%clk 0:02:31]}  O-O {[%clk 0:02:11]} 17. Be2 {[%clk 0:02:31]}  Nd7 {[%clk 0:01:56]} 18. h4 {[%clk 0:02:22]}  Nxe5 {[%clk 0:01:55]} 19. dxe5 {[%clk 0:02:23]}  Qc7 {[%clk 0:01:10]} 20. h5 {[%clk 0:02:21]}  Rad8 {[%clk 0:00:52]} 21. Kf1 {[%clk 0:02:05]}  c5 {[%clk 0:00:48]} 22. Rh4 {[%clk 0:02:02]}  Rd7 {[%clk 0:00:36]} 23. Kg1 {[%clk 0:02:01]}  Rfd8 {[%clk 0:00:36]} 24. hxg6 {[%clk 0:01:59]}  hxg6 {[%clk 0:00:36]} 25. Kh2 {[%clk 0:01:40]}  Rd4 {[%clk 0:00:34]} 26. f4 {[%clk 0:01:37]}  Bxc4 {[%clk 0:00:31]} 27. Bxc4 {[%clk 0:01:35]}  Rxc4 {[%clk 0:00:31]} 28. Rh1 {[%clk 0:01:32]}  Rcd4 {[%clk 0:00:25]} 29. e6 {[%clk 0:01:31]}  Rd3 {[%clk 0:00:17]} 30. exf7+ {[%clk 0:01:29]}  Kxf7 {[%clk 0:00:16]} 31. Qe4 {[%clk 0:01:19]}  Qc6 {[%clk 0:00:12]} 32. Qxc6 {[%clk 0:01:09]}  bxc6 {[%clk 0:00:12]} 33. Rc1 {[%clk 0:01:08]}  R8d5 {[%clk 0:00:11]} 34. Rc2 {[%clk 0:01:04]}  Rd2 {[%clk 0:00:09]} 35. Rxd2 {[%clk 0:01:01]}  Rxd2 {[%clk 0:00:09]} 36. b3 {[%clk 0:01:01]}  Rd3 {[%clk 0:00:09]} 37. f5 {[%clk 0:01:01]}  gxf5 {[%clk 0:00:09]} 38. Rc4 {[%clk 0:01:01]}  Bd4 {[%clk 0:00:08]} 39. Bd6 {[%clk 0:01:00]}  Rxb3 {[%clk 0:00:07]} 40. Bxc5 {[%clk 0:00:59]}  Bxc5 {[%clk 0:00:06]} 41. Rxc5 {[%clk 0:00:59]}  Rb5 {[%clk 0:00:06]} 42. Rxc6 {[%clk 0:00:59]}  Rxa5 {[%clk 0:00:07]} 43. Kg3 {[%clk 0:00:56]}  e6 {[%clk 0:00:07]} 44. Kf4 {[%clk 0:00:55]}  Kf6 {[%clk 0:00:07]} 45. Rb6 {[%clk 0:00:54]}  Ra4+ {[%clk 0:00:07]} 46. Kf3 {[%clk 0:00:54]}  Re4 {[%clk 0:00:06]} 47. Rxa6 {[%clk 0:00:53]}  Rb4 {[%clk 0:00:06]} 48. Ra5 {[%clk 0:00:53]}  Rb3+ {[%clk 0:00:05]} 49. Kf4 {[%clk 0:00:52]}  Rb2 {[%clk 0:00:05]} 50. Kf3 {[%clk 0:00:51]}  e5 {[%clk 0:00:04]} 51. Ra6+ {[%clk 0:00:49]}  Kg5 {[%clk 0:00:05]} 52. Ra8 {[%clk 0:00:49]}  Rb3+ {[%clk 0:00:04]} 53. Kf2 {[%clk 0:00:48]}  Kf4 {[%clk 0:00:04]} 54. Ra4+ {[%clk 0:00:48]}  e4 {[%clk 0:00:04]} 55. Ra2 {[%clk 0:00:45]}  Kg4 {[%clk 0:00:03]} 56. Rc2 {[%clk 0:00:43]}  f4 {[%clk 0:00:00]} 57. Ra2 {[%clk 0:00:42]} 1-0


[Site "https://www.chess.com"]

[Event "Titled Tuesday Blitz June 20 Early 2023"]
[White "Polanco Nunez, Yoel Estarling"]
[Black "Milovic, Aleksandra"]
[WhiteFideId "6401783"]
[BlackFideId "933988"]
[WhiteElo "2132"]
[BlackElo "2000"]
[Result "1-0"]
[Round "5"]
[TimeControl "180+2"]
[Date "2023.06.20"]
[WhiteClock "0:01:33"]
[BlackClock "0:01:20"]
[Board "211"]

1. c4 {[%clk 0:02:21]}  e5 {[%clk 0:02:48]} 2. Nc3 {[%clk 0:02:19]}  Nf6 {[%clk 0:02:45]} 3. Nf3 {[%clk 0:02:19]}  d6 {[%clk 0:02:43]} 4. d4 {[%clk 0:02:18]}  exd4 {[%clk 0:02:40]} 5. Nxd4 {[%clk 0:02:18]}  Be7 {[%clk 0:02:39]} 6. g3 {[%clk 0:02:18]}  Nc6 {[%clk 0:02:36]} 7. Nxc6 {[%clk 0:02:15]}  bxc6 {[%clk 0:02:36]} 8. Bg2 {[%clk 0:02:16]}  Bb7 {[%clk 0:02:32]} 9. Qa4 {[%clk 0:02:13]}  O-O {[%clk 0:02:23]} 10. Bxc6 {[%clk 0:01:40]}  Bxc6 {[%clk 0:02:20]} 11. Qxc6 {[%clk 0:01:40]}  Rb8 {[%clk 0:02:16]} 12. O-O {[%clk 0:01:40]}  Rb6 {[%clk 0:02:12]} 13. Qf3 {[%clk 0:01:39]}  h5 {[%clk 0:02:05]} 14. b3 {[%clk 0:01:39]}  c6 {[%clk 0:02:02]} 15. Rd1 {[%clk 0:01:38]}  Qc8 {[%clk 0:01:56]} 16. Be3 {[%clk 0:01:36]}  Rb7 {[%clk 0:01:52]} 17. Rac1 {[%clk 0:01:35]}  Rd8 {[%clk 0:01:45]} 18. Bg5 {[%clk 0:01:35]}  g6 {[%clk 0:01:20]} 19. Bxf6 {[%clk 0:01:33]} 1-0


[Site "https://www.chess.com"]

[Event "Titled Tuesday Blitz June 20 Early 2023"]
[White "Saim, Mohamed Ilias"]
[Black "Calderin Gonzalez, Roberto"]
[WhiteFideId "7900465"]
[BlackFideId "5102979"]
[WhiteElo "2063"]
[BlackElo "2228"]
[Result "1/2-1/2"]
[Round "5"]
[TimeControl "180+2"]
[Date "2023.06.20"]
[WhiteClock "0:00:04"]
[BlackClock "0:00:04"]
[Board "212"]

1. d4 {[%clk 0:02:57]}  d5 {[%clk 0:02:57]} 2. Nf3 {[%clk 0:02:56]}  Nf6 {[%clk 0:02:52]} 3. e3 {[%clk 0:02:56]}  Bf5 {[%clk 0:02:48]} 4. c4 {[%clk 0:02:56]}  e6 {[%clk 0:02:44]} 5. Nc3 {[%clk 0:02:56]}  h6 {[%clk 0:02:41]} 6. Qb3 {[%clk 0:02:55]}  Nc6 {[%clk 0:02:32]} 7. a3 {[%clk 0:02:46]}  Rb8 {[%clk 0:02:29]} 8. Be2 {[%clk 0:02:41]}  Bd6 {[%clk 0:02:21]} 9. h3 {[%clk 0:02:32]}  a6 {[%clk 0:02:11]} 10. Bd2 {[%clk 0:02:04]}  dxc4 {[%clk 0:02:06]} 11. Qxc4 {[%clk 0:02:00]}  O-O {[%clk 0:01:49]} 12. Rc1 {[%clk 0:01:59]}  Na5 {[%clk 0:01:43]} 13. Qa2 {[%clk 0:01:54]}  Nc6 {[%clk 0:01:35]} 14. b4 {[%clk 0:01:46]}  e5 {[%clk 0:01:32]} 15. dxe5 {[%clk 0:01:39]}  Nxe5 {[%clk 0:01:32]} 16. O-O {[%clk 0:01:32]}  Qe7 {[%clk 0:01:23]} 17. Rfd1 {[%clk 0:01:30]}  Rbd8 {[%clk 0:01:08]} 18. Na4 {[%clk 0:01:07]}  Nxf3+ {[%clk 0:00:46]} 19. Bxf3 {[%clk 0:01:07]}  Qe5 {[%clk 0:00:46]} 20. Bc3 {[%clk 0:00:34]}  Qh2+ {[%clk 0:00:18]} 21. Kf1 {[%clk 0:00:34]}  Ne4 {[%clk 0:00:16]} 22. Ke2 {[%clk 0:00:16]}  Nxc3+ {[%clk 0:00:10]} 23. Nxc3 {[%clk 0:00:16]}  Qe5 {[%clk 0:00:09]} 24. Na4 {[%clk 0:00:11]}  Be6 {[%clk 0:00:07]} 25. Qb2 {[%clk 0:00:09]}  Qxb2+ {[%clk 0:00:06]} 26. Nxb2 {[%clk 0:00:10]}  b5 {[%clk 0:00:06]} 27. Nd3 {[%clk 0:00:09]}  Be7 {[%clk 0:00:04]} 28. Nc5 {[%clk 0:00:10]}  Bxc5 {[%clk 0:00:04]} 29. Rxc5 {[%clk 0:00:11]}  Rxd1 {[%clk 0:00:04]} 30. Kxd1 {[%clk 0:00:11]}  Rd8+ {[%clk 0:00:04]} 31. Ke2 {[%clk 0:00:12]}  Bc4+ {[%clk 0:00:04]} 32. Ke1 {[%clk 0:00:10]}  Rd3 {[%clk 0:00:03]} 33. Be2 {[%clk 0:00:08]}  Rc3 {[%clk 0:00:02]} 34. Bxc4 {[%clk 0:00:08]}  bxc4 {[%clk 0:00:03]} 35. Kd2 {[%clk 0:00:08]}  Rxa3 {[%clk 0:00:02]} 36. Rxc4 {[%clk 0:00:09]}  Rb3 {[%clk 0:00:02]} 37. Kc2 {[%clk 0:00:07]}  Ra3 {[%clk 0:00:01]} 38. Rxc7 {[%clk 0:00:07]}  Ra2+ {[%clk 0:00:02]} 39. Kb3 {[%clk 0:00:06]}  Rxf2 {[%clk 0:00:02]} 40. Rc8+ {[%clk 0:00:06]}  Kh7 {[%clk 0:00:02]} 41. Rc6 {[%clk 0:00:07]}  Rxg2 {[%clk 0:00:02]} 42. Rxa6 {[%clk 0:00:07]}  Rg3 {[%clk 0:00:03]} 43. b5 {[%clk 0:00:06]}  Rxe3+ {[%clk 0:00:04]} 44. Kc4 {[%clk 0:00:07]}  Rxh3 {[%clk 0:00:04]} 45. b6 {[%clk 0:00:06]}  Rh1 {[%clk 0:00:05]} 46. Kc5 {[%clk 0:00:05]}  Rb1 {[%clk 0:00:04]} 47. Kc6 {[%clk 0:00:05]}  g5 {[%clk 0:00:04]} 48. Ra7 {[%clk 0:00:04]}  Kg6 {[%clk 0:00:03]} 49. Ra5 {[%clk 0:00:03]}  Rxb6+ {[%clk 0:00:02]} 50. Kxb6 {[%clk 0:00:03]}  f5 {[%clk 0:00:03]} 51. Kc5 {[%clk 0:00:04]}  g4 {[%clk 0:00:03]} 52. Kd4 {[%clk 0:00:04]}  Kg5 {[%clk 0:00:04]} 53. Ke3 {[%clk 0:00:04]}  h5 {[%clk 0:00:04]} 54. Kf2 {[%clk 0:00:05]}  h4 {[%clk 0:00:04]} 55. Ra8 {[%clk 0:00:04]}  Kf4 {[%clk 0:00:04]} 56. Ra4+ {[%clk 0:00:04]}  Kg5 {[%clk 0:00:03]} 57. Kg2 {[%clk 0:00:04]}  f4 {[%clk 0:00:03]} 58. Ra5+ {[%clk 0:00:04]}  Kg6 {[%clk 0:00:03]} 59. Kh2 {[%clk 0:00:04]}  Kf6 {[%clk 0:00:04]} 60. Kg2 {[%clk 0:00:04]}  Kg6 {[%clk 0:00:04]} 61. Ra6+ {[%clk 0:00:04]}  Kg5 {[%clk 0:00:04]} 62. Ra5+ {[%clk 0:00:04]}  Kg6 {[%clk 0:00:04]} 1/2-1/2


[Site "https://www.chess.com"]

[Event "Titled Tuesday Blitz June 20 Early 2023"]
[White "Kiseleva, Arina"]
[Black "Goughfather"]
[WhiteFideId "4164989"]
[WhiteElo "1701"]
[BlackElo "2001"]
[Result "0-1"]
[Round "5"]
[TimeControl "180+2"]
[Date "2023.06.20"]
[WhiteClock "0:00:06"]
[BlackClock "0:00:29"]
[Board "213"]

1. d4 {[%clk 0:03:00]}  d5 {[%clk 0:02:59]} 2. Nf3 {[%clk 0:03:00]}  Nf6 {[%clk 0:02:58]} 3. e3 {[%clk 0:03:01]}  Bf5 {[%clk 0:02:53]} 4. Bd3 {[%clk 0:03:01]}  e6 {[%clk 0:02:50]} 5. Bxf5 {[%clk 0:02:54]}  exf5 {[%clk 0:02:49]} 6. O-O {[%clk 0:02:54]}  Bd6 {[%clk 0:02:48]} 7. c4 {[%clk 0:02:54]}  dxc4 {[%clk 0:02:48]} 8. Qa4+ {[%clk 0:02:53]}  c6 {[%clk 0:02:43]} 9. Qxc4 {[%clk 0:02:53]}  O-O {[%clk 0:02:42]} 10. Nc3 {[%clk 0:02:45]}  Nbd7 {[%clk 0:02:42]} 11. Rd1 {[%clk 0:02:43]}  Nb6 {[%clk 0:02:41]} 12. Qd3 {[%clk 0:02:41]}  g6 {[%clk 0:02:40]} 13. b3 {[%clk 0:02:27]}  Nbd5 {[%clk 0:02:35]} 14. Bb2 {[%clk 0:02:23]}  Qe7 {[%clk 0:02:31]} 15. Nd2 {[%clk 0:01:59]}  Bxh2+ {[%clk 0:02:21]} 16. Kxh2 {[%clk 0:01:42]}  Ng4+ {[%clk 0:02:20]} 17. Kg3 {[%clk 0:01:29]}  Qc7+ {[%clk 0:01:42]} 18. Kf3 {[%clk 0:01:03]}  Nb4 {[%clk 0:01:30]} 19. Qc4 {[%clk 0:00:56]}  Na6 {[%clk 0:01:17]} 20. Rh1 {[%clk 0:00:42]}  Rfe8 {[%clk 0:01:10]} 21. g3 {[%clk 0:00:38]}  Qe7 {[%clk 0:01:06]} 22. Rae1 {[%clk 0:00:23]}  Nc7 {[%clk 0:01:00]} 23. e4 {[%clk 0:00:19]}  Qg5 {[%clk 0:00:54]} 24. d5 {[%clk 0:00:15]}  Qxd2 {[%clk 0:00:49]} 25. Re2 {[%clk 0:00:14]}  Ne5+ {[%clk 0:00:47]} 26. Kg2 {[%clk 0:00:12]}  Nxc4 {[%clk 0:00:46]} 27. Rxd2 {[%clk 0:00:11]}  Nxd2 {[%clk 0:00:46]} 28. d6 {[%clk 0:00:12]}  Nb5 {[%clk 0:00:43]} 29. exf5 {[%clk 0:00:12]}  Nxd6 {[%clk 0:00:38]} 30. fxg6 {[%clk 0:00:10]}  fxg6 {[%clk 0:00:38]} 31. Na4 {[%clk 0:00:08]}  N2e4 {[%clk 0:00:35]} 32. f3 {[%clk 0:00:07]}  Ng5 {[%clk 0:00:32]} 33. Bd4 {[%clk 0:00:07]}  Nf5 {[%clk 0:00:31]} 34. Bf2 {[%clk 0:00:07]}  Re2 {[%clk 0:00:30]} 35. Nc3 {[%clk 0:00:07]}  Rc2 {[%clk 0:00:30]} 36. Ne4 {[%clk 0:00:07]}  Ne3+ {[%clk 0:00:30]} 37. Kg1 {[%clk 0:00:06]}  Nxf3# {[%clk 0:00:29]} 0-1


[Site "https://www.chess.com"]

[Event "Titled Tuesday Blitz June 20 Early 2023"]
[White "Porat, Tori"]
[Black "Fudalej, Michal"]
[WhiteFideId "30982626"]
[BlackFideId "1118781"]
[WhiteElo "1752"]
[BlackElo "2088"]
[Result "0-1"]
[Round "5"]
[TimeControl "180+2"]
[Date "2023.06.20"]
[WhiteClock "0:00:56"]
[BlackClock "0:00:35"]
[Board "214"]

1. d4 {[%clk 0:03:00]}  Nf6 {[%clk 0:02:59]} 2. c4 {[%clk 0:02:56]}  g6 {[%clk 0:02:59]} 3. Nc3 {[%clk 0:02:54]}  Bg7 {[%clk 0:02:59]} 4. Nf3 {[%clk 0:02:53]}  d6 {[%clk 0:03:00]} 5. e4 {[%clk 0:02:52]}  O-O {[%clk 0:03:00]} 6. Bg5 {[%clk 0:02:51]}  h6 {[%clk 0:02:59]} 7. Bxf6 {[%clk 0:02:51]}  Bxf6 {[%clk 0:02:59]} 8. Be2 {[%clk 0:02:51]}  Bg7 {[%clk 0:02:59]} 9. O-O {[%clk 0:02:50]}  Nd7 {[%clk 0:02:55]} 10. h3 {[%clk 0:02:41]}  c6 {[%clk 0:02:55]} 11. d5 {[%clk 0:02:39]}  Qc7 {[%clk 0:02:40]} 12. Rc1 {[%clk 0:02:32]}  a6 {[%clk 0:02:38]} 13. a3 {[%clk 0:02:30]}  c5 {[%clk 0:02:29]} 14. b4 {[%clk 0:02:28]}  b6 {[%clk 0:02:21]} 15. b5 {[%clk 0:02:23]}  Nf6 {[%clk 0:01:51]} 16. a4 {[%clk 0:02:14]}  Bd7 {[%clk 0:01:50]} 17. Re1 {[%clk 0:02:08]}  axb5 {[%clk 0:01:49]} 18. axb5 {[%clk 0:02:07]}  Ra3 {[%clk 0:01:44]} 19. Bd3 {[%clk 0:02:05]}  Rfa8 {[%clk 0:01:42]} 20. e5 {[%clk 0:02:04]}  dxe5 {[%clk 0:01:31]} 21. Nxe5 {[%clk 0:01:54]}  Nh5 {[%clk 0:01:10]} 22. Qe2 {[%clk 0:01:48]}  Nf4 {[%clk 0:01:03]} 23. Qd2 {[%clk 0:01:38]}  Bxe5 {[%clk 0:01:02]} 24. Re3 {[%clk 0:01:25]}  Nxd3 {[%clk 0:00:53]} 25. Qxd3 {[%clk 0:01:12]}  Bf4 {[%clk 0:00:53]} 26. Rxe7 {[%clk 0:01:11]}  Bxc1 {[%clk 0:00:50]} 27. d6 {[%clk 0:01:08]}  Qd8 {[%clk 0:00:40]} 28. Nd5 {[%clk 0:00:56]}  Rxd3 {[%clk 0:00:35]} 0-1


[Site "https://www.chess.com"]

[Event "Titled Tuesday Blitz June 20 Early 2023"]
[White "campochess"]
[Black "Better_Chess_Faster"]
[WhiteElo "2190"]
[BlackElo "1992"]
[Result "0-1"]
[Round "5"]
[TimeControl "180+2"]
[Date "2023.06.20"]
[WhiteClock "0:00:00"]
[BlackClock "0:00:01"]
[Board "215"]

1. d4 {[%clk 0:03:00]}  f5 {[%clk 0:02:57]} 2. Bg5 {[%clk 0:02:58]}  g6 {[%clk 0:02:56]} 3. Nc3 {[%clk 0:02:53]}  Bg7 {[%clk 0:02:56]} 4. e4 {[%clk 0:02:53]}  h6 {[%clk 0:02:53]} 5. Be3 {[%clk 0:02:50]}  d6 {[%clk 0:02:50]} 6. exf5 {[%clk 0:02:49]}  Bxf5 {[%clk 0:02:49]} 7. Bd3 {[%clk 0:02:49]}  Qd7 {[%clk 0:02:48]} 8. Nge2 {[%clk 0:02:49]}  Nf6 {[%clk 0:02:47]} 9. Ng3 {[%clk 0:02:48]}  e6 {[%clk 0:02:41]} 10. h4 {[%clk 0:02:40]}  Nc6 {[%clk 0:02:35]} 11. h5 {[%clk 0:02:39]}  g5 {[%clk 0:02:31]} 12. Nxf5 {[%clk 0:02:36]}  exf5 {[%clk 0:02:31]} 13. Qf3 {[%clk 0:02:36]}  O-O {[%clk 0:02:23]} 14. Qxf5 {[%clk 0:02:33]}  Qxf5 {[%clk 0:02:15]} 15. Bxf5 {[%clk 0:02:32]}  Rae8 {[%clk 0:02:13]} 16. Bg6 {[%clk 0:02:31]}  Re7 {[%clk 0:02:07]} 17. O-O-O {[%clk 0:02:31]}  Nb4 {[%clk 0:02:01]} 18. d5 {[%clk 0:02:23]}  Ng4 {[%clk 0:01:50]} 19. Bd4 {[%clk 0:02:20]}  Ne5 {[%clk 0:01:40]} 20. a3 {[%clk 0:02:15]}  Na6 {[%clk 0:01:35]} 21. Bd3 {[%clk 0:02:06]}  Nxd3+ {[%clk 0:01:29]} 22. Rxd3 {[%clk 0:02:04]}  Bxd4 {[%clk 0:01:29]} 23. Rxd4 {[%clk 0:02:03]}  Rxf2 {[%clk 0:01:27]} 24. g4 {[%clk 0:01:51]}  Nc5 {[%clk 0:01:21]} 25. b4 {[%clk 0:01:47]}  Na6 {[%clk 0:01:14]} 26. Rhd1 {[%clk 0:01:38]}  Re3 {[%clk 0:01:10]} 27. R1d3 {[%clk 0:01:33]}  Re1+ {[%clk 0:01:09]} 28. Kb2 {[%clk 0:01:32]}  Rg2 {[%clk 0:00:59]} 29. Re4 {[%clk 0:01:29]}  Rxe4 {[%clk 0:00:52]} 30. Nxe4 {[%clk 0:01:29]}  Kg7 {[%clk 0:00:50]} 31. Rg3 {[%clk 0:01:22]}  Re2 {[%clk 0:00:47]} 32. Nc3 {[%clk 0:01:18]}  Rd2 {[%clk 0:00:46]} 33. Kc1 {[%clk 0:01:16]}  Rd4 {[%clk 0:00:45]} 34. Ne2 {[%clk 0:01:10]}  Re4 {[%clk 0:00:44]} 35. Kd2 {[%clk 0:01:08]}  Nb8 {[%clk 0:00:43]} 36. Kd3 {[%clk 0:01:07]}  Re5 {[%clk 0:00:42]} 37. c4 {[%clk 0:01:05]}  Nd7 {[%clk 0:00:41]} 38. Nd4 {[%clk 0:01:04]}  Re1 {[%clk 0:00:34]} 39. Kd2 {[%clk 0:00:56]}  Ra1 {[%clk 0:00:25]} 40. Nf5+ {[%clk 0:00:55]}  Kh7 {[%clk 0:00:24]} 41. Re3 {[%clk 0:00:51]}  Ne5 {[%clk 0:00:23]} 42. Rc3 {[%clk 0:00:38]}  Rxa3 {[%clk 0:00:16]} 43. Rxa3 {[%clk 0:00:33]}  Nxc4+ {[%clk 0:00:16]} 44. Kc3 {[%clk 0:00:33]}  Nxa3 {[%clk 0:00:17]} 45. Nd4 {[%clk 0:00:30]}  Nb1+ {[%clk 0:00:15]} 46. Kc2 {[%clk 0:00:27]}  Na3+ {[%clk 0:00:16]} 47. Kb3 {[%clk 0:00:25]}  Nb1 {[%clk 0:00:16]} 48. Nb5 {[%clk 0:00:23]}  Nd2+ {[%clk 0:00:14]} 49. Kc3 {[%clk 0:00:21]}  Ne4+ {[%clk 0:00:13]} 50. Kd4 {[%clk 0:00:21]}  Nf2 {[%clk 0:00:13]} 51. Nxc7 {[%clk 0:00:21]}  Nxg4 {[%clk 0:00:13]} 52. Ne8 {[%clk 0:00:21]}  Nf2 {[%clk 0:00:11]} 53. Nxd6 {[%clk 0:00:20]}  g4 {[%clk 0:00:10]} 54. Nf5 {[%clk 0:00:19]}  Nh3 {[%clk 0:00:08]} 55. d6 {[%clk 0:00:19]}  Ng5 {[%clk 0:00:08]} 56. d7 {[%clk 0:00:18]}  Nf7 {[%clk 0:00:08]} 57. Kd5 {[%clk 0:00:17]}  Kg8 {[%clk 0:00:06]} 58. Ke6 {[%clk 0:00:17]}  Kf8 {[%clk 0:00:06]} 59. Nxh6 {[%clk 0:00:16]}  Nd8+ {[%clk 0:00:05]} 60. Kf6 {[%clk 0:00:15]}  g3 {[%clk 0:00:05]} 61. Nf5 {[%clk 0:00:07]}  g2 {[%clk 0:00:04]} 62. h6 {[%clk 0:00:07]}  g1=Q {[%clk 0:00:03]} 63. h7 {[%clk 0:00:07]}  Qa1+ {[%clk 0:00:02]} 64. Kg6 {[%clk 0:00:00]}  Qh8 {[%clk 0:00:01]} 0-1


[Site "https://www.chess.com"]

[Event "Titled Tuesday Blitz June 20 Early 2023"]
[White "Shimanov, Aleksandr"]
[Black "Vachier-Lagrave, Maxime"]
[WhiteFideId "4198603"]
[BlackFideId "623539"]
[WhiteElo "2631"]
[BlackElo "2739"]
[Result "0-1"]
[Round "6"]
[TimeControl "180+2"]
[Date "2023.06.20"]
[WhiteClock "0:00:00"]
[BlackClock "0:00:16"]
[Board "2"]

1. e4 {[%clk 0:02:55]}  c5 {[%clk 0:02:58]} 2. d4 {[%clk 0:02:56]}  cxd4 {[%clk 0:02:58]} 3. Qxd4 {[%clk 0:02:57]}  Nc6 {[%clk 0:02:57]} 4. Qd3 {[%clk 0:02:55]}  g6 {[%clk 0:02:54]} 5. Nc3 {[%clk 0:02:55]}  Bg7 {[%clk 0:02:54]} 6. Nf3 {[%clk 0:02:56]}  d6 {[%clk 0:02:54]} 7. Be2 {[%clk 0:02:56]}  Bg4 {[%clk 0:02:53]} 8. O-O {[%clk 0:02:57]}  Nf6 {[%clk 0:02:53]} 9. Nd5 {[%clk 0:02:57]}  O-O {[%clk 0:02:51]} 10. c3 {[%clk 0:02:57]}  Nd7 {[%clk 0:02:52]} 11. Bg5 {[%clk 0:02:56]}  h6 {[%clk 0:02:50]} 12. Bh4 {[%clk 0:02:40]}  g5 {[%clk 0:02:45]} 13. Bg3 {[%clk 0:02:40]}  e5 {[%clk 0:02:44]} 14. Ne3 {[%clk 0:02:30]}  Nc5 {[%clk 0:02:43]} 15. Qc2 {[%clk 0:02:31]}  Be6 {[%clk 0:02:34]} 16. Rfd1 {[%clk 0:02:26]}  Rc8 {[%clk 0:02:24]} 17. Nc4 {[%clk 0:02:16]}  Bxc4 {[%clk 0:02:20]} 18. Bxc4 {[%clk 0:02:17]}  Qe7 {[%clk 0:02:20]} 19. Qe2 {[%clk 0:02:12]}  Kh8 {[%clk 0:02:18]} 20. Nd2 {[%clk 0:02:01]}  Ne6 {[%clk 0:02:06]} 21. Nf1 {[%clk 0:01:53]}  Nf4 {[%clk 0:02:00]} 22. Qd2 {[%clk 0:01:52]}  Na5 {[%clk 0:01:47]} 23. Bb3 {[%clk 0:01:51]}  Nc4 {[%clk 0:01:42]} 24. Bxc4 {[%clk 0:01:49]}  Rxc4 {[%clk 0:01:43]} 25. f3 {[%clk 0:01:50]}  Rd8 {[%clk 0:01:40]} 26. Ne3 {[%clk 0:01:49]}  Rc6 {[%clk 0:01:40]} 27. Qc2 {[%clk 0:01:42]}  Qe6 {[%clk 0:01:38]} 28. Qb3 {[%clk 0:01:40]}  Rb6 {[%clk 0:01:38]} 29. Qc2 {[%clk 0:01:21]}  h5 {[%clk 0:01:32]} 30. Rd2 {[%clk 0:01:19]}  h4 {[%clk 0:01:31]} 31. Bxf4 {[%clk 0:01:17]}  exf4 {[%clk 0:01:32]} 32. Nd5 {[%clk 0:01:16]}  Rc6 {[%clk 0:01:27]} 33. h3 {[%clk 0:01:16]}  Be5 {[%clk 0:01:27]} 34. Rad1 {[%clk 0:01:16]}  Kg7 {[%clk 0:01:27]} 35. Qb3 {[%clk 0:01:15]}  Qd7 {[%clk 0:01:20]} 36. Kh1 {[%clk 0:01:06]}  Rc5 {[%clk 0:01:16]} 37. Nb4 {[%clk 0:00:59]}  f6 {[%clk 0:00:55]} 38. Rd5 {[%clk 0:00:55]}  Qe7 {[%clk 0:00:49]} 39. R1d3 {[%clk 0:00:36]}  Rdc8 {[%clk 0:00:45]} 40. Rd1 {[%clk 0:00:36]}  b6 {[%clk 0:00:42]} 41. a4 {[%clk 0:00:35]}  Qf7 {[%clk 0:00:33]} 42. Qa3 {[%clk 0:00:27]}  a5 {[%clk 0:00:33]} 43. Na2 {[%clk 0:00:23]}  Rxd5 {[%clk 0:00:32]} 44. Rxd5 {[%clk 0:00:24]}  Rc5 {[%clk 0:00:33]} 45. Qb3 {[%clk 0:00:22]}  f5 {[%clk 0:00:31]} 46. Nc1 {[%clk 0:00:21]}  fxe4 {[%clk 0:00:31]} 47. Rxc5 {[%clk 0:00:18]}  dxc5 {[%clk 0:00:19]} 48. Qxf7+ {[%clk 0:00:07]}  Kxf7 {[%clk 0:00:20]} 49. fxe4 {[%clk 0:00:08]}  c4 {[%clk 0:00:19]} 50. Kg1 {[%clk 0:00:08]}  Ke6 {[%clk 0:00:19]} 51. Kf2 {[%clk 0:00:09]}  Bd6 {[%clk 0:00:20]} 52. Kf3 {[%clk 0:00:09]}  Bc5 {[%clk 0:00:20]} 53. Ne2 {[%clk 0:00:08]}  Ke5 {[%clk 0:00:20]} 54. Nc1 {[%clk 0:00:08]}  Bg1 {[%clk 0:00:19]} 55. b4 {[%clk 0:00:00]}  Be3 {[%clk 0:00:16]} 0-1


[Site "https://www.chess.com"]

[Event "Titled Tuesday Blitz June 20 Early 2023"]
[White "Nakamura, Hikaru"]
[Black "Jones, Gawain C B"]
[WhiteFideId "2016192"]
[BlackFideId "409561"]
[WhiteElo "2874"]
[BlackElo "2645"]
[Result "1-0"]
[Round "6"]
[TimeControl "180+2"]
[Date "2023.06.20"]
[WhiteClock "0:01:37"]
[BlackClock "0:01:13"]
[Board "4"]

1. Nf3 {[%clk 0:03:00]}  Nf6 {[%clk 0:02:59]} 2. b3 {[%clk 0:02:54]}  g6 {[%clk 0:03:00]} 3. Bb2 {[%clk 0:02:55]}  Bg7 {[%clk 0:03:00]} 4. d4 {[%clk 0:02:55]}  O-O {[%clk 0:03:01]} 5. e3 {[%clk 0:02:56]}  d6 {[%clk 0:02:56]} 6. Be2 {[%clk 0:02:56]}  c5 {[%clk 0:02:56]} 7. O-O {[%clk 0:02:56]}  b6 {[%clk 0:02:53]} 8. c4 {[%clk 0:02:54]}  e6 {[%clk 0:02:51]} 9. Nc3 {[%clk 0:02:53]}  a6 {[%clk 0:02:49]} 10. Qc2 {[%clk 0:02:53]}  cxd4 {[%clk 0:02:45]} 11. Nxd4 {[%clk 0:02:53]}  Bb7 {[%clk 0:02:45]} 12. Bf3 {[%clk 0:02:53]}  Qc7 {[%clk 0:02:40]} 13. Bxb7 {[%clk 0:02:44]}  Qxb7 {[%clk 0:02:40]} 14. Rfd1 {[%clk 0:02:42]}  Nc6 {[%clk 0:02:38]} 15. Nf3 {[%clk 0:02:23]}  Rfd8 {[%clk 0:02:35]} 16. Rd2 {[%clk 0:02:19]}  d5 {[%clk 0:02:30]} 17. cxd5 {[%clk 0:02:10]}  Nb4 {[%clk 0:02:29]} 18. Qd1 {[%clk 0:02:10]}  exd5 {[%clk 0:02:01]} 19. Ne2 {[%clk 0:01:45]}  Ne4 {[%clk 0:01:52]} 20. Bxg7 {[%clk 0:01:46]}  Nxd2 {[%clk 0:01:52]} 21. Qxd2 {[%clk 0:01:45]}  Kxg7 {[%clk 0:01:50]} 22. Qxb4 {[%clk 0:01:44]}  Rac8 {[%clk 0:01:47]} 23. h4 {[%clk 0:01:42]}  Qc6 {[%clk 0:01:42]} 24. Rd1 {[%clk 0:01:41]}  Qc2 {[%clk 0:01:36]} 25. Qd4+ {[%clk 0:01:40]}  Kg8 {[%clk 0:01:34]} 26. Nf4 {[%clk 0:01:40]}  Qc3 {[%clk 0:01:21]} 27. Qxb6 {[%clk 0:01:37]}  Rc6 {[%clk 0:01:13]} 28. Qxd8+ {[%clk 0:01:37]} 1-0


[Site "https://www.chess.com"]